Cogmind - Beta 10.2 @@@ ROGUE MODE // 2021.01.06 @ 13:03:08 Player: Cracklepappy Result: Destroyed by D-53 Grenadier with Mini Grenade Launcher Performance ------------- Evolutions (0) 0 Regions Visited (2) 400 Robots Destroyed (24) 120 Value Destroyed (526) 526 Prototype IDs (0) 0 Alien Tech Used (0) 0 Bonus (0) 0 TOTAL SCORE: 1046 Bonus ------- None Cogmind --------- Core Integrity 0/250 Matter 235/300 Energy 74/100 System Corruption 2% Temperature Cool (0) Movement Rolling (140) Ox5 Location -10/Mines Parts ------- > --- POWER (1) -------- (None) > --- PROPULSION (2) --- Light Treads Armored Wheel > --- UTILITY (2) ------ High-capacity Storage Unit High-capacity Storage Unit > --- WEAPON (2) ------- (None) > --- INVENTORY (20) --- Improved Aluminum Leg Improved Aluminum Leg Improved Aluminum Leg High-capacity Storage Unit High-capacity Storage Unit High-capacity Storage Unit Large Matter Pod (150) Improved Terrain Scanner Utility Shielding Utility Shielding Light EM Pulse Cannon Light Cannon Grenade Launcher Mining Laser Peak State ------------ > --- POWER ------------ Light Nuclear Core > --- PROPULSION ------- Light Treads Armored Wheel > --- UTILITY ---------- High-capacity Storage Unit High-capacity Storage Unit > --- WEAPON ----------- Light EM Pulse Cannon Light EM Pulse Cannon > --- INVENTORY -------- Ion Engine Improved Aluminum Leg Improved Aluminum Leg Improved Aluminum Leg Wheel Armored Wheel Armored Wheel High-capacity Storage Unit High-capacity Storage Unit Medium Matter Pod Large Matter Pod Improved Terrain Scanner Utility Shielding Utility Shielding Medium Laser Light EM Pulse Cannon Light EM Pulse Cannon Light Cannon Grenade Launcher Mining Laser [Rating: 14] Favorites ----------- Power Light Nuclear Core Engine Light Ion Engine Power Core Light Nuclear Core Propulsion Light Treads Treads Light Treads Wheel Armored Wheel Utility High-capacity Storage Unit Device Improved Terrain Scanner Storage High-capacity Storage Unit Weapon Light EM Pulse Cannon Energy Gun Medium Laser Energy Cannon Light EM Pulse Cannon Ballistic Cannon Light Cannon Launcher Grenade Launcher Special Weapon Mining Laser Build | -11 -10 -10 ------- Run | Scr Mat Min Slots Evolved . | . . . Power . | . . . Propulsion . | . . . Utility . | . . . Weapon . | . . . Parts Attached 34 | 7 19 8 Power 3 | 1 1 1 Engine 2 | 1 . 1 Core 1 | . 1 . Reactor . | . . . Propulsion 8 | 2 2 4 Treads 4 | 1 1 2 Leg . | . . . Wheel 4 | 1 1 2 Hover . | . . . Flight . | . . . Utility 5 | 2 3 . Device 1 | 1 . . Storage 4 | 1 3 . Processor . | . . . Hackware . | . . . Protection . | . . . Artifact . | . . . Weapon 18 | 2 13 3 Energy Gun 6 | 2 4 . Energy Cannon 5 | . 3 2 Ballistic Gun . | . . . Ballistic Cannon 1 | . 1 . Launcher 5 | . 4 1 Special Weapon 1 | . 1 . Impact Weapon . | . . . Slashing Weapon . | . . . Piercing Weapon . | . . . Special Melee Weapon . | . . . Unidentified Prototypes . | . . . Parts Lost 11 | . 2 9 Power 2 | . . 2 Propulsion 5 | . 1 4 Utility . | . . . Weapon 4 | . 1 3 Highest Loss Streak 9 | . 1 9 Average Slot Usage (%) 99 | . 99 96 Engine 5 | . 5 . Core 8 | . 8 12 Treads 14 | . 14 14 Wheel 14 | . 14 14 Device 1 | . 1 . Storage 26 | . 26 28 Energy Gun 6 | . 8 . Energy Cannon 17 | . 16 24 Ballistic Cannon 2 | . 2 . Naked Turns . | . . . Heaviest Build 77 | 11 77 77 Greatest Support 12 | 10 12 12 Greatest Overweight (x) 7 | 1 7 6 Average Overweight (x) 5 | . 5 5 Largest Inventory Capacity 20 | 6 20 20 Average Capacity 17 | 5 18 20 Most Carried 20 | 6 20 20 Average Carried 16 | 3 17 19 Final Capacity 20 | 6 20 20 Final Carried 20 | 6 20 14 Class Distribution -------------------- 84% | Hauler-Mutant 15% | Mutant Dominant Class ---------------- Hauler-Mutant | -10/Materials Hauler-Mutant | -10/Mines Resources | -11 -10 -10 ----------- Run | Scr Mat Min Matter Collected 786 | 231 486 69 Remotely . | . . . Salvage Created 905 | 80 750 75 Parts 40 | 4 36 . Haulers Intercepted 2 | . 2 . Recyclers Shooed 4 | . 4 . Parts Field Recycled . | . . . Retrieved Matter . | . . . Parts Self-Destructed . | . . . Prevented . | . . . Kills | -11 -10 -10 ------- Run | Scr Mat Min Combat Hostiles Destroyed 17 | . 15 2 Guns 2 | . 2 . Cannons 3 | . 3 . AOE 11 | . 10 1 Classes Destroyed 7 | 2 4 1 Tunneler 1 | 1 . . Hauler 2 | . 2 . Recycler 4 | 1 3 . Operator 1 | . 1 . Swarmer 3 | . 3 . Grunt 12 | . 12 . Assembled 1 | . . 1 Best Kill Streak 4 | 2 4 1 Combat Bots Only 3 | . 3 1 Max Kills in Single Turn 3 | 1 3 1 Gunslinging . | . . . Exploded 3 | . 3 1 Melee . | . . . Uniques/NPCs Destroyed 1 | . . 1 YI-UF0 (-10/Mines) Combat | -11 -10 -10 -------- Run | Scr Mat Min Damage Taken 1800 | . 394 1406 Core 253 | . 33 220 Absorbed by Shields . | . . . Core Remaining (%) 100 | 100 . . Volleys Fired 62 | 8 44 10 Largest 2 | 2 2 2 Hottest 112 | 90 112 112 Shots Fired 109 | 16 80 13 Gun 60 | 16 44 . Cannon 37 | . 27 10 Launcher 11 | . 8 3 Special 1 | . 1 . Kinetic 6 | . 6 . Thermal 61 | 16 45 . Explosive 11 | . 8 3 Electromagnetic 31 | . 21 10 Robot Hit Streak 10 | 6 10 4 Robot Miss Streak 5 | 1 5 1 Penetration Max . | . . . Secondary Targets . | . . . Shots Hit Robots 69 | 12 48 9 Core Hits 52 | 3 39 10 Critical Hits . | . . . Critical Kills . | . . . Critical Parts Destroyed . | . . . Melee Attacks . | . . . Impact . | . . . Slashing . | . . . Piercing . | . . . Sneak Attacks . | . . . Combat Hostiles . | . . . Follow-up Attacks . | . . . Damage Inflicted 2016 | 138 1559 319 Guns 466 | 138 328 . Cannons 560 | . 425 135 Explosions 976 | . 792 184 Melee . | . . . Ramming 14 | . 14 . Kinetic 76 | . 76 . Thermal 550 | 138 354 58 Explosive 892 | . 766 126 Electromagnetic 484 | . 349 135 Impact . | . . . Slashing . | . . . Piercing . | . . . Highest Corruption 2 | . 2 2 Average Corruption 2 | . 2 2 Corruption Purged . | . . . Effects 14 | . 10 4 Message Errors 6 | . 4 2 Heat Flow Errors 3 | . 3 . Energy Discharges 2 | . 2 . Data Loss (minor) 1 | . 1 . Targeting Errors 1 | . . 1 Weapon Failures 1 | . . 1 Overload Shots . | . . . Overflow Damage 5 | . 5 . Projectiles 5 | . 5 . Explosions . | . . . Melee . | . . . Knockbacks . | . . . Impact . | . . . Kinetic . | . . . Secondary . | . . . Self-Inflicted Damage 36 | . 6 30 Shots 1 | . . 1 Rammed 3 | . 3 . Targets Rammed 3 | . 3 . Kicked . | . . . Crushed . | . . . Highest Temperature 338 | 210 338 191 Average Temperature 88 | 96 88 83 Received Heat Transfer 213 | . 213 . Effects 1 | . 1 . Matter Decay 1 | . 1 . Siege Activations . | . . . Robots Corrupted 1 | . . 1 Combat Hostiles 1 | . . 1 Parts Fried . | . . . Impact Corruptions . | . . . Robots Melted . | . . . Combat Hostiles . | . . . Parts Melted 2 | . 2 . Heat Transferred 1375 | 372 953 50 Parts Sabotaged . | . . . Parts Stolen . | . . . Parts Stripped . | . . . Power Chain Reactions 2 | . 1 1 Missiles Intercepted . | . . . Alert | -11 -10 -10 ------- Run | Scr Mat Min Peak Influence 368 | 10 368 45 Initial 45 | . 6 45 Average 134 | 4 163 24 Maximum Alert Level 1 | . 1 . Low Security (%) 66 | 100 58 100 Level 1 33 | . 41 . Level 2 . | . . . Level 3 . | . . . Level 4 . | . . . Level 5 . | . . . High Security . | . . . Max Security . | . . . Squads Dispatched 4 | . 4 . Investigation 2 | . 2 . Extermination . | . . . Reinforcement 2 | . 2 . Assault . | . . . Garrison . | . . . Intercept . | . . . Construction Impeded . | . . . Haulers Reinforced . | . . . Stealth | -11 -10 -10 --------- Run | Scr Mat Min Distress Signals 4 | . 4 . Communications Jammed . | . . . Distress Signals . | . . . Times Spotted 51 | . 34 17 Peak Tracking Total 20 | . 5 20 Tactical Retreats 2 | . 2 . Traps | -11 -10 -10 ------- Run | Scr Mat Min Traps Triggered 3 | . 3 . Indirectly . | . . . Trap Hack Attempts . | . . . Triggered . | . . . Disarmed . | . . . Reprogrammed . | . . . Reused . | . . . Traps Extracted . | . . . Installed . | . . . Triggered . | . . . Machines | -11 -10 -10 ---------- Run | Scr Mat Min Machines Disabled 1 | . 1 . Max in Single Turn 1 | . 1 . Machines Sabotaged . | . . . Garrisons Compromised . | . . . Overloaded Fab Kills . | . . . Fab Network Shutdowns . | . . . Hacking | -11 -10 -10 --------- Run | Scr Mat Min Machines Accessed 5 | . 5 . Terminals 4 | . 4 . Fabricators . | . . . Repair Stations . | . . . Recycling Units 1 | . 1 . Scanalyzers . | . . . Garrison Access . | . . . Total Hacks 14 | . 14 . Successful 4 | . 4 . Failed 10 | . 10 . Catastrophic 1 | . 1 . Database Lockouts . | . . . Manual 8 | . 8 . Terminals 13 | . 13 . Fabricators . | . . . Repair Stations . | . . . Recycling Units 1 | . 1 . Scanalyzers . | . . . Garrison Access . | . . . Terminal Hacks 2 | . 2 . Hauler Manifests 1 | . 1 . Zone Layout 1 | . 1 . Fabricator Hacks . | . . . Repair Station Hacks . | . . . Recycling Unit Hacks . | . . . Scanalyzer . | . . . Garrison Access Hacks . | . . . Unauthorized Hacks 2 | . 2 . Terminals 1 | . 1 . Track 1 | . 1 . Fabricators . | . . . Repair Stations . | . . . Recycling Units 1 | . 1 . Tunnel 1 | . 1 . Scanalyzers . | . . . Garrison Access . | . . . Data Cores Recovered . | . . . Used . | . . . Hacking Detections 4 | . 4 . Full Trace Events . | . . . Feedback Events . | . . . Feedback Blocked . | . . . Robot Schematics Acquired . | . . . Robots Built . | . . . Matter . | . . . Time . | . . . Total Robot Build Rating . | . . . Part Schematics Acquired . | . . . Parts Built . | . . . Matter . | . . . Time . | . . . Total Part Build Rating . | . . . Parts Repaired . | . . . Time . | . . . Parts Recycled . | . . . Recycled Matter . | . . . Retrieved Matter . | . . . Retrieved Components . | . . . Parts Scanalyzed . | . . . Part Schematics Acquired . | . . . Parts Damaged . | . . . Bothacking | -11 -10 -10 ------------ Run | Scr Mat Min Used RIF Installer . | . . . Robots Hacked . | . . . Non-combat . | . . . Combat . | . . . Robot Hacks Applied . | . . . Relay Couplers Released . | . . . Robots Rewired . | . . . Allies Hacked . | . . . Hacks Repelled . | . . . Allies | -11 -10 -10 -------- Run | Scr Mat Min Total Allies 3 | . . 3 Largest Group 3 | . . 3 Highest-Rated Group 40 | . . 40 Highest-Rated Ally 16 | . . 16 Total Orders . | . . . Ally Attacks 1 | . . 1 Total Damage 15 | . . 15 Kills . | . . . Allies Corrupted . | . . . Allies Melted . | . . . Intel | -11 -10 -10 ------- Run | Scr Mat Min Robot Analysis Total . | . . . Derelict Logs Recovered . | . . . Drone Launches . | . . . Drone Recoveries . | . . . Exploration | -11 -10 -10 ------------- Run | Scr Mat Min Turns Passed 1625 | 98 1303 224 Spaces Moved 971 | 69 774 128 Core 3 | 3 . . Treads . | . . . Legs . | . . . Wheels 968 | 66 774 128 Hover . | . . . Flight . | . . . Fastest Speed 50 | 50 90 140 Average Speed 137 | 81 141 149 Slowest Speed 150 | 90 150 150 Overloaded Moves . | . . . Propulsion Burnouts . | . . . Robots Hopped . | . . . Cave-ins Triggered . | . . . Exploration Rate (%) 51 | 6 98 50 Regions Visited 2 Branch Regions 1 Pre-discovered Areas 1 | . 1 . Known Exits Taken . | . . . Unknown Exits Taken 2 | 1 1 . Scrap Searched . | . . . Spaces Dug 1 | . 1 . Terrain Destroyed 43 | . 19 24 Melee . | . . . Projectile 1 | . 1 . AOE 42 | . 18 24 Terrain Rammed . | . . . Walls Destroyed . | . . . Machines Disabled . | . . . Actions | -11 -10 -10 --------- Run | Scr Mat Min Total 1137 | 91 900 146 Wait 26 | . 26 . Move 969 | 68 773 128 Hop . | . . . Pick Up 32 | 8 24 . Fast Attach 6 | 5 1 . Attach 11 | 2 3 6 Detach . | . . . Swap 17 | . 15 2 Drop 11 | . 11 . Fire 62 | 8 44 10 Melee . | . . . Ram 3 | . 3 . Kick . | . . . Crush . | . . . Escape Stasis . | . . . Rewire . | . . . Trap . | . . . Miscellaneous . | . . . Route ------- -11/Scrapyard -10/Materials (discovered 5 exits: [*Mat x3] / [*Min x2]) -10/Mines (discovered 2 exits: [*Mat x2]) History --------- Turn | Location | Event 23 | -11/Scrapyard | Discovered new exit (range 15) 99 | -11/Scrapyard | Entered Materials 347 | -10/Materials | Discovered new exit (range 16) 512 | -10/Materials | Discovered new exit (range 3) 545 | -10/Materials | Discovered new exit (range 6) 548 | -10/Materials | Build established: Hauler-Mutant 783 | -10/Materials | Discovered new exit (range 4) 887 | -10/Materials | Discovered new exit (range 15) 1402 | -10/Materials | Entered Mines 1444 | -10/Mines | Discovered new exit (range 8) 1462 | -10/Mines | Assisted by bots powering up and referring to "LRC-V3" 1519 | -10/Mines | Discovered new exit (range 10) 1532 | -10/Mines | Destroyed YI-UF0 1581 | -10/Mines | Assembled infested the area 1605 | -10/Mines | Core integrity fell below 50% 1621 | -10/Mines | Core integrity fell below 20% 1625 | -10/Mines | Met 8R-AWN 1626 | -10/Mines | Destroyed by D-53 Grenadier with Mini Grenade Launcher Last Messages --------------- 01608_ Lgt. Nuclear Core destroyed. 01609_ The unstable cave ceiling collapses. 01612_ Lgt. EM Pulse Cannon destroyed. 01613_ The unstable cave ceiling collapses. 01614_ Lgt. EM Pulse Cannon destroyed. 01615_ The unstable cave ceiling collapses. 01618_ Ion Engine destroyed. 01619_ The unstable cave ceiling collapses. 01620_ Lgt. Treads destroyed. 01621_ The unstable cave ceiling collapses. 01622_ Arm. Wheel destroyed. 01624_ as-18031 destroyed. 01625_ The unstable cave ceiling collapses. 8R-AWN: Hm, I'm not getting any readings that show these Assembled are different than what we have already... But you... you look interesting. Maybe they'll want to see you. Come along little bot, it's safer with us than out here, anyway. 01625_ HV Slug penetrates Wall. 01626_ The unstable cave ceiling collapses. 01626_ as-45872 destroyed. Map ----- +----------------------------------------------------+ | ??????# ## # % ##### # | | ????????# ## # ###??? | | ?????????# """ # # ###????? | | ??????#### """ % # #??????? | | ??????# "" ## #??????? | | ?????## # # # # ##??????? | | ?????# # " #### #####???????? | | ?????# # %##??## # #???????????? | | ???#### "#????#######???????????? | | ??## % #??????????????????????? | | ?## #??????????????????????? | | # ???????????????????????? | | ?# ######?????????????????? | | # ##???????#????????? | | ## # ###????? #????????? | | ?## ##?? #?????????? | | ?###### d # #? #?????????? | | ??????# d ## ##????????? | | ??????# a # ##???????? | | ??????## ????? | | ???????# ## ????? | | ???????# ##???? ?????? | | ??#????# #??????????????? | | ??# # ##??????????????? | | ??# # #??????????????? | | ??# ####a @ #????????????????? | | ??# #??# ###????????????????? | | ???? ???## #??????????????????? | | ???? ????# ##??????????????????? | | ?????????##%# ###???????????????????? | | ??????????% # #?????????????????????? | | ????????? %?;;?????????????????????? | | ???????? %?%? =?????????????????????? | | ????????#g ?%s?????????????????????? | | ????????#####?## ????????????????????? | | ???????????????? ????????????????????? | | ???????????????? ????????????????????? | | ????????????????#????????????????????? | | ?????????????????????????????????????? | | ?????????????????????????????????????? | | ?????????????????????????????????????? | | ?????????????????????????????????????? | | ?????????????????????????????????????? | | ?????????????????????????????????????? | | ?????????????????????????????????????? | | ?????????????????????????????????????? | | | | | | | | | +----------------------------------------------------+ Best States ------------- Heat Dissipation 25 Energy Generation 14 Energy Capacity 160 Matter Stores 300 Matter Capacity 300 Sight Range 16 Terrain Scan Range 16 Terrain Scan Density 10 Evasion (%) 44 Recoil Reduction 1 Item Schematics ----------------- None Robot Schematics ------------------ None Fabricated ------------ Nothing Alien Tech Used ----------------- None Achievements -------------- None Challenges ------------ None Game ------ Seed NuclearModifiedSheargun Manual? 0 Play Time 00:16:09 Cumulative 280.3 hours Start 2021.01.06 @ 12:34:21 End 2021.01.06 @ 13:03:08 Sessions 1 Manual Loads 0 Difficulty Rogue Special Mode None Game No. 286 Rogue 286 Adventurer 0 Explorer 0 Win Type - Total 4 Types 4/0/0/0/0/0/0/0/0 Lore% 64 Gallery% 79 Achievement% 61 Wizard Run 0 Options --------- ASCII 0 Keyboard 0 Movement Numpad Keybinds 0 Fullscreen 2 Font 24/Terminus Map View 76x50 Tactical HUD 1 Map Filters NONE Filters NONE Steam 1 RUN: 9bb114c6-3bf4-46a9-88b2-8e30f8ced5d1